fUST/lending_fUST_20250803
["ID","MTS","AMOUNT","RATE_DAILY","PERIOD"]
[376998827,1754195456264,-460.0,0.00028093,10]
[376998829,1754195456273,-460.0,0.00028093,10]
[376998831,1754195456283,-460.0,0.00028093,10]
[376998833,1754195456292,-460.0,0.00028093,10]
[376998835,1754195456302,-460.0,0.00028093,10]
[376998837,1754195456311,-460.0,0.00028093,10]
[376998839,1754195456320,-460.0,0.00028093,10]
[376998841,1754195456329,-460.0,0.00028093,10]
[376998843,1754195456340,-460.0,0.00028093,10]
[376998845,1754195456349,-460.0,0.00028093,10]
[376998847,1754195456359,-607.4,0.00028093,10]
[376998849,1754195456368,-890.42,0.00028093,10]
[376998851,1754195456378,-890.42,0.00028093,10]
[376998853,1754195456387,-890.42,0.00028093,10]
[376998855,1754195456397,-890.42,0.00028093,10]
[376998857,1754195456406,-890.42,0.00028093,10]
[376998859,1754195456415,-890.42,0.00028093,10]
[376998861,1754195456425,-890.42,0.00028093,10]
[376998863,1754195456434,-890.42,0.00028093,10]
[376998865,1754195456443,-890.42,0.00028093,10]
[376998866,1754195456452,-890.42,0.00028093,10]
[376998868,1754195456462,-890.42,0.00028093,10]
[376998870,1754195456472,-890.42,0.00028093,10]
[376998872,1754195456482,-890.42,0.00028093,10]
[376998874,1754195456492,-890.42,0.00028093,10]
[376998876,1754195456501,-890.42,0.00028093,10]
[376998878,1754195456510,-890.42,0.00028093,10]
[376998880,1754195456519,-890.64,0.00028093,10]
[376998882,1754195456529,-151.702738,0.00028094,7]
[376998884,1754195456538,-151.626484,0.00028094,7]
[376998886,1754195456547,-151.0,0.00028094,7]
[376998888,1754195456557,-151.0,0.00028094,7]
[376998890,1754195456567,-151.0,0.00028094,7]
[376998892,1754195456576,-151.0,0.00028094,7]
[376998894,1754195456585,-151.0,0.00028094,7]
[376998896,1754195456597,-151.0,0.00028094,7]
[376998898,1754195456606,-153.524629,0.00028094,7]
[376998900,1754195456615,-151.0,0.00028094,7]
[376998902,1754195456625,-151.0,0.00028094,7]
[376998904,1754195456634,-151.0,0.00028094,7]
[376998906,1754195456644,-151.0,0.00028094,7]
[376998908,1754195456653,-151.0,0.00028094,7]
[376998910,1754195456663,-151.0,0.00028094,7]
[376998912,1754195456672,-151.0,0.00028094,7]
[376998914,1754195456681,-239.184757,0.00028094,7]
[376998916,1754195456690,-151.0,0.00028094,7]
[376998917,1754195456700,-460.0,0.00028096,10]
[376998919,1754195456710,-460.0,0.00028096,10]
[376998921,1754195456719,-420.0,0.00028096,10]
[376998923,1754195456729,-200.46260399,0.00028096,10]
[376998925,1754195456739,-151.859292,0.00028097,7]
[376998927,1754195456748,-151.0,0.00028097,7]
[376998929,1754195456757,-151.0,0.00028097,7]
[376998931,1754195456766,-295.869669,0.00028097,7]
[376998933,1754195456775,-213.0,0.000281,30]
[376998935,1754195456784,-6460.0,0.000281,7]
[376998937,1754195456793,-733.53,0.000281,7]
[376998939,1754195456802,-2153.93,0.000281,7]
[376998941,1754195456812,-53390.26,0.000281,2]
[376998943,1754195456822,-157.406571,0.000281,10]
[376998945,1754195456831,-151.0,0.000281,7]
[376998947,1754195456841,-160.46320362,0.00028108,10]
[376998949,1754195456851,-284.648865,0.00028109,7]
[376998951,1754195456860,-333228.8410468,0.00028109,20]
[376998953,1754195456870,-3799.999999,0.00028109,7]
[376998955,1754195456879,-1058297.41767826,0.00028109,20]
[376998957,1754195456888,-2063905.6300655,0.00028109,20]
[376999357,1754195757241,8717.0,0.00028219,30]
[376999358,1754196228453,164.0,0.00022,2]
[376999360,1754196280340,180.17403472,0.00022359,2]
[376999363,1754196334944,162.410345,0.00013699,2]
[376999364,1754196335154,162.410345,0.00022505,2]
[376999365,1754196335197,-204.61,0.00023758,2]
[376999366,1754196335219,-500.0,0.00024383,2]
[376999367,1754196335241,-204.61,0.00024492,2]
[376999368,1754196335261,-204.61,0.00025226,7]
[376999369,1754196335282,-176.99,0.00025375,7]
[376999370,1754196335302,-176.99,0.00025475,7]
[376999371,1754196335324,-157.26,0.0002548,7]
[376999372,1754196335348,-177.0,0.00025575,7]
[376999373,1754196335369,-4.18180263,0.0002558,7]
[376999374,1754196411093,-153.07819737,0.0002558,7]
[376999375,1754196411114,-26.22741062,0.0002558,7]
[376999376,1754196449073,-174.1,0.0002558,7]
[376999377,1754196449097,-157.26,0.0002568,7]
[376999378,1754196449120,-157.28,0.0002578,7]
[376999379,1754196449140,-160.0,0.00026024,2]
[376999380,1754196449161,-501.8505177,0.00026028,2]
[376999381,1754196449182,-174.1,0.00026101,7]
[376999382,1754196449202,-272.26085667,0.00026575,2]
[376999406,1754196631774,-500.0,0.00024383,2]
[376999408,1754196631786,-295.05441502,0.00026019,2]
[376999411,1754196631798,-150.0,0.00026119,2]
[376999413,1754196631809,-500.0,0.00026575,2]
[376999415,1754196631820,-322.14,0.00026714,2]
[376999417,1754196631832,-184.07820942,0.00027397,2]
[376999419,1754196631843,-500.0,0.00027397,5]
[376999422,1754196631855,-151.0,0.00027402,7]
[376999424,1754196631867,-151.0,0.00027518,7]
[376999426,1754196631881,-151.0,0.00027635,7]
[376999428,1754196631892,-345.13748866,0.00027745,2]
[376999430,1754196631906,-206.66579807,0.00027745,2]
[376999432,1754196631917,-613.63142919,0.0002775,2]
[376999435,1754196631931,-433.8591904,0.0002775,2]
[376999437,1754196631945,-152.50938041,0.0002775,2]
[376999439,1754196631957,-151.0,0.00027751,7]
[376999441,1754196631967,-345.13748865,0.00027795,2]
[376999443,1754196631978,-32.95200093,0.00027798,2]
[376999446,1754196631992,-267.11492307,0.00027798,2]
[376999449,1754196632003,-458.03,0.000278,2]
[376999452,1754196632014,-164.76471132,0.00027828,2]
[376999455,1754196632026,-250.0,0.00027828,2]
[376999458,1754196632037,-151.0,0.00027828,2]
[376999460,1754196632048,-300.0,0.00027834,2]
[376999462,1754196632059,-2068.28567159,0.00027835,2]
[376999647,1754196637898,-263.53139499,0.00027835,2]
[376999649,1754196637909,-133.97138428,0.00027844,2]
[376999652,1754196637924,-1142.13736508,0.00027844,2]
[376999654,1754196637939,-1346.30125064,0.00027844,2]
[376999656,1754196637950,-220.99959496,0.00027845,2]
[376999658,1754196637962,-617.98410226,0.00027845,2]
[376999661,1754196637975,-1589.56849854,0.00027845,2]
[376999663,1754196637986,-8019.33134793,0.00027845,2]
[376999665,1754196637999,-4307.63678426,0.00027845,2]
[376999667,1754196638012,-1514.10566017,0.00027845,2]
[376999670,1754196638026,-31700.30939629,0.00027845,2]
[376999672,1754196638040,-27571.41877841,0.00027845,2]
[376999675,1754196638056,-7094.06299874,0.00027845,2]
[376999685,1754196638338,-15115.52473241,0.00027845,2]
[376999686,1754196638351,-213.672,0.00027845,17]
[376999687,1754196638363,-345.13748865,0.00027845,2]
[376999688,1754196638378,-295.05441502,0.00027845,2]
[376999689,1754196638390,-151.0,0.00027867,7]
[376999690,1754196638402,-503.31030764,0.00027873,5]
[376999691,1754196638415,-500.0,0.00027873,5]
[376999692,1754196638428,-500.0,0.00027873,5]
[376999693,1754196638440,-500.0,0.00027873,5]
[376999694,1754196638451,-500.0,0.00027873,5]
[376999695,1754196638464,-163.89451956,0.00027873,2]
[376999696,1754196638476,-163.89451954,0.0002792,2]
[376999697,1754196638489,-6995.45119974,0.00027935,2]
[376999698,1754196638501,-881.7,0.00027935,3]
[376999699,1754196638514,-881.7,0.00027935,3]
[376999700,1754196638526,-189.36817778,0.00027944,2]
[376999701,1754196638537,-313.85302182,0.00027944,2]
[376999702,1754196638549,-500.0,0.00027944,2]
[376999703,1754196638560,-500.0,0.00027944,2]
[376999704,1754196638574,-463.12829471,0.00027944,2]
[376999705,1754196638592,-461.58750805,0.00027945,10]
[376999706,1754196638604,-458.3486478,0.00027945,10]
[376999707,1754196638617,-460.0,0.00027945,10]
[376999708,1754196638629,-460.0,0.00027945,10]
[376999709,1754196638642,-460.0,0.00027945,10]
[376999710,1754196638654,-227.46803508,0.00027945,10]
[376999711,1754196638666,-460.0,0.00027945,10]
[376999712,1754196638678,-468.17,0.00027945,10]
[376999713,1754196638690,-460.0,0.00027945,10]
[376999714,1754196638702,-426.30299753,0.00027945,10]
[376999715,1754196638713,-460.0,0.00027945,10]
[376999716,1754196638724,-426.10617916,0.00027945,10]
[376999717,1754196638735,-460.0,0.00027945,10]
[376999718,1754196638747,-460.0,0.00027945,10]
[376999719,1754196638758,-460.0,0.00027945,10]
[376999720,1754196638771,-460.0,0.00027945,10]
[376999721,1754196638959,-460.0,0.00027945,10]
[376999722,1754196638979,-275.82,0.00027945,10]
[376999723,1754196638988,-498.93,0.00027945,10]
[376999724,1754196638998,-460.0,0.00027945,10]
[376999725,1754196639007,-460.0,0.00027945,10]
[376999726,1754196639017,-460.0,0.00027945,10]
[376999727,1754196639027,-536.8,0.00027945,10]
[376999728,1754196639036,-460.0,0.00027945,10]
[376999729,1754196639048,-460.0,0.00027945,10]
[376999730,1754196639058,-601.10017543,0.00027945,10]
[376999731,1754196639068,-460.0,0.00027945,10]
[376999732,1754196639078,-460.0,0.00027945,10]
[376999733,1754196639090,-460.0,0.00027945,10]
[376999734,1754196639099,-463.52130929,0.00027945,10]
[376999735,1754196639110,-460.0,0.00027945,10]
[376999736,1754196639121,-460.0,0.00027945,10]
[376999737,1754196639131,-460.0,0.00027945,10]
[376999738,1754196639141,-460.0,0.00027945,10]
[376999739,1754196639151,-460.0,0.00027945,10]
[376999740,1754196639160,-460.0,0.00027945,10]
[376999741,1754196639170,-460.0,0.00027945,10]
[376999742,1754196639180,-460.0,0.00027945,10]
[376999743,1754196639190,-460.0,0.00027945,10]
[376999744,1754196639201,-460.0,0.00027945,10]
[376999745,1754196639212,-460.0,0.00027945,10]
[376999746,1754196639222,-460.0,0.00027945,10]
[376999747,1754196639231,-460.0,0.00027945,10]
[376999748,1754196639243,-380.55,0.00027945,10]
[376999749,1754196639253,-247.22292734,0.00027945,10]
[376999750,1754196639263,-500.0,0.00027945,10]
[376999751,1754196639274,-460.0,0.00027945,10]
[376999752,1754196639284,-460.0,0.00027945,10]
[376999753,1754196639295,-460.0,0.00027945,10]
[376999754,1754196639307,-460.0,0.00027945,10]
[376999755,1754196639323,-460.0,0.00027945,10]
[376999756,1754196639333,-460.0,0.00027945,10]
[376999757,1754196639343,-462.06,0.00027945,10]
[376999758,1754196639352,-460.0,0.00027945,10]
[376999759,1754196639362,-460.0,0.00027945,10]
[376999760,1754196639371,-460.0,0.00027945,10]
[376999761,1754196639381,-460.0,0.00027945,10]
[376999762,1754196639394,-507.74895964,0.00027945,10]
[376999763,1754196639403,-462.16699193,0.00027945,10]
[376999764,1754196639414,-460.0,0.00027945,10]
[376999765,1754196639423,-460.0,0.00027945,10]
[376999766,1754196639435,-460.0,0.00027945,10]
[376999767,1754196639445,-460.0,0.00027945,10]
[376999768,1754196639455,-460.0,0.00027945,10]
[376999769,1754196639464,-561.22888339,0.00027945,10]
[376999770,1754196639473,-460.0,0.00027945,10]
[376999771,1754196639483,-460.0,0.00027945,10]
[376999772,1754196639492,-512.84,0.00027945,10]
[376999773,1754196639502,-460.0,0.00027945,10]
[376999774,1754196639512,-460.0,0.00027945,10]
[376999775,1754196639521,-460.0,0.00027945,10]
[376999776,1754196639531,-460.0,0.00027945,10]
[376999777,1754196639540,-460.0,0.00027945,10]
[376999778,1754196639550,-460.0,0.00027945,10]
[376999779,1754196639559,-460.0,0.00027945,10]
[376999780,1754196639568,-460.0,0.00027945,10]
[376999781,1754196639578,-240.99204942,0.00027945,10]
[376999782,1754196639588,-460.0,0.00027945,10]
[376999783,1754196639598,-515.42,0.00027945,10]
[376999784,1754196639608,-460.0,0.00027945,10]
[376999785,1754196639617,-460.0,0.00027945,10]
[376999786,1754196639627,-460.0,0.00027945,10]
[376999787,1754196639636,-460.0,0.00027945,10]
[376999788,1754196639647,-460.0,0.00027945,10]
[376999790,1754196639656,-460.0,0.00027945,10]
[376999792,1754196639666,-460.0,0.00027945,10]
[376999794,1754196639676,-460.0,0.00027945,10]
[376999796,1754196639686,-460.0,0.00027945,10]
[376999798,1754196639696,-460.0,0.00027945,10]
[376999800,1754196639707,-460.0,0.00027945,10]
[376999802,1754196639716,-460.0,0.00027945,10]
[376999804,1754196639728,-460.0,0.00027945,10]
[376999806,1754196639737,-460.0,0.00027945,10]
[376999808,1754196639747,-460.0,0.00027945,10]
[376999810,1754196639757,-460.0,0.00027945,10]
[376999812,1754196639767,-460.0,0.00027945,10]
[376999814,1754196639776,-263.70171387,0.00027945,10]
[376999815,1754196639786,-460.0,0.00027945,10]
[376999816,1754196639795,-460.0,0.00027945,10]
[376999817,1754196639804,-460.0,0.00027945,10]
[376999818,1754196639814,-460.0,0.00027945,10]
[376999821,1754196639824,-460.0,0.00027945,10]
[376999822,1754196639834,-460.0,0.00027945,10]
[376999825,1754196639844,-460.0,0.00027945,10]
[376999826,1754196639855,-460.0,0.00027945,10]
[376999827,1754196639865,-460.0,0.00027945,10]
[376999828,1754196639875,-460.0,0.00027945,10]
[376999829,1754196639885,-460.0,0.00027945,10]
[376999830,1754196639894,-460.0,0.00027945,10]
[376999831,1754196639903,-460.0,0.00027945,10]
[376999832,1754196639913,-460.0,0.00027945,10]
[376999833,1754196639923,-460.0,0.00027945,10]
[376999834,1754196639933,-460.0,0.00027945,10]
[376999835,1754196639943,-460.0,0.00027945,10]
[376999836,1754196639955,-460.0,0.00027945,10]
[376999837,1754196639967,-460.0,0.00027945,10]
[376999838,1754196639977,-460.0,0.00027945,10]
[376999839,1754196639987,-460.0,0.00027945,10]
[376999840,1754196639997,-460.0,0.00027945,10]
[376999841,1754196640009,-348.92,0.00027945,10]
[376999842,1754196640018,-460.0,0.00027945,10]
[376999843,1754196640028,-460.0,0.00027945,10]
[376999844,1754196640038,-296.04,0.00027945,10]
[376999845,1754196640048,-460.0,0.00027945,10]
[376999846,1754196640058,-460.0,0.00027945,10]
[376999847,1754196640069,-191.04451321,0.00027945,10]
[376999848,1754196640081,-460.0,0.00027945,10]
[376999849,1754196640090,-460.0,0.00027945,10]
[376999850,1754196640100,-460.0,0.00027945,10]
[376999851,1754196640109,-460.0,0.00027945,10]
[376999852,1754196640119,-460.0,0.00027945,10]
[376999853,1754196640128,-462.171742,0.00027945,10]
[376999854,1754196640138,-460.0,0.00027945,10]
[376999855,1754196640148,-460.0,0.00027945,10]
[376999856,1754196640157,-460.0,0.00027945,10]
[376999857,1754196640167,-460.0,0.00027945,10]
[376999858,1754196640177,-460.0,0.00027945,10]
[376999859,1754196640186,-460.0,0.00027945,10]
[376999860,1754196640195,-460.0,0.00027945,10]
[376999861,1754196640205,-460.0,0.00027945,10]
[376999862,1754196640214,-460.0,0.00027945,10]
[376999863,1754196640223,-460.0,0.00027945,10]
[376999864,1754196640232,-460.0,0.00027945,10]
[376999865,1754196640241,-460.0,0.00027945,10]
[376999866,1754196640251,-460.0,0.00027945,10]
[376999867,1754196640260,-460.0,0.00027945,10]
[376999868,1754196640269,-460.0,0.00027945,10]
[376999869,1754196640278,-460.0,0.00027945,10]
[376999870,1754196640288,-460.0,0.00027945,10]
[376999871,1754196640297,-460.0,0.00027945,10]
[376999872,1754196640307,-255.41115174,0.00027945,10]
[376999873,1754196640316,-460.0,0.00027945,10]
[376999874,1754196640325,-460.0,0.00027945,10]
[376999875,1754196640334,-500.59,0.00027945,10]
[376999876,1754196640344,-460.0,0.00027945,10]
[376999877,1754196640353,-460.0,0.00027945,10]
[376999878,1754196640363,-460.0,0.00027945,10]
[376999879,1754196640373,-460.0,0.00027945,10]
[376999880,1754196640382,-597.75624686,0.00027945,10]
[376999881,1754196640391,-182.72,0.00027945,10]
[376999882,1754196640400,-460.0,0.00027945,10]
[376999883,1754196640410,-460.0,0.00027945,10]
[376999884,1754196640419,-460.0,0.00027945,10]
[376999885,1754196640429,-460.0,0.00027945,10]
[376999886,1754196640439,-460.0,0.00027945,10]
[376999887,1754196640448,-460.0,0.00027945,10]
[376999888,1754196640457,-460.0,0.00027945,10]
[376999889,1754196640467,-460.0,0.00027945,10]
[376999890,1754196640476,-464.12884837,0.00027945,10]
[376999891,1754196640486,-460.0,0.00027945,10]
[376999892,1754196640495,-460.0,0.00027945,10]
[376999893,1754196640505,-460.0,0.00027945,10]
[376999894,1754196640514,-500.57,0.00027945,10]
[376999895,1754196640524,-500.57,0.00027945,10]
[376999896,1754196640541,-500.57,0.00027945,10]
[376999897,1754196640551,-500.57,0.00027945,10]
[376999898,1754196640561,-500.57,0.00027945,10]
[376999899,1754196640571,-500.57,0.00027945,10]
[376999900,1754196640583,-500.57,0.00027945,10]
[376999901,1754196640602,-500.57,0.00027945,10]
[376999902,1754196640612,-500.57,0.00027945,10]
[376999903,1754196640621,-500.57,0.00027945,10]
[376999904,1754196640631,-500.57,0.00027945,10]
[376999905,1754196640640,-460.0,0.00027945,10]
[376999906,1754196640650,-460.0,0.00027945,10]
[376999907,1754196640660,-460.0,0.00027945,10]
[376999908,1754196640669,-460.0,0.00027945,10]
[376999909,1754196640679,-460.0,0.00027945,10]
[376999910,1754196640688,-460.0,0.00027945,10]
[376999911,1754196640697,-460.0,0.00027945,10]
[376999912,1754196640707,-460.0,0.00027945,10]
[376999913,1754196640716,-460.0,0.00027945,10]
[376999914,1754196640725,-488.15,0.00027945,10]
[376999915,1754196640735,-460.0,0.00027945,10]
[376999916,1754196640744,-460.0,0.00027945,10]
[376999917,1754196640753,-460.0,0.00027945,10]
[376999918,1754196640763,-460.0,0.00027945,10]
[376999919,1754196640773,-460.0,0.00027945,10]
[376999920,1754196640782,-460.0,0.00027945,10]
[376999921,1754196640791,-460.0,0.00027945,10]
[376999922,1754196640801,-460.0,0.00027945,10]
[376999923,1754196640810,-460.0,0.00027945,10]
[376999924,1754196640820,-460.0,0.00027945,10]
[376999925,1754196640830,-460.0,0.00027945,10]
[376999926,1754196640839,-460.0,0.00027945,10]
[376999927,1754196640848,-460.0,0.00027945,10]
[376999928,1754196640858,-547.84,0.00027945,10]
[376999929,1754196640867,-460.0,0.00027945,10]
[376999930,1754196640877,-460.0,0.00027945,10]
[376999931,1754196640887,-460.0,0.00027945,10]
[376999932,1754196640897,-460.0,0.00027945,10]
[376999933,1754196640906,-420.84,0.00027945,10]
[376999934,1754196640916,-460.0,0.00027945,10]
[376999935,1754196640925,-460.0,0.00027945,10]
[376999936,1754196640935,-460.0,0.00027945,10]
[376999937,1754196640944,-460.0,0.00027945,10]
[376999938,1754196640954,-460.0,0.00027945,10]
[376999939,1754196640963,-276.36,0.00027945,10]
[376999940,1754196640973,-460.0,0.00027945,10]
[376999941,1754196640982,-460.0,0.00027945,10]
[376999942,1754196640992,-460.0,0.00027945,10]
[376999943,1754196641001,-460.0,0.00027945,10]
[376999944,1754196641010,-460.0,0.00027945,10]
[376999945,1754196641019,-460.0,0.00027945,10]
[376999946,1754196641029,-460.0,0.00027945,10]
[376999947,1754196641038,-596.55137943,0.00027945,10]
[376999948,1754196641048,-460.0,0.00027945,10]
[376999949,1754196641058,-460.0,0.00027945,10]
[376999950,1754196641067,-460.0,0.00027945,10]
[376999951,1754196641077,-460.0,0.00027945,10]
[376999952,1754196641086,-460.0,0.00027945,10]
[376999953,1754196641096,-460.0,0.00027945,10]
[376999954,1754196641107,-460.0,0.00027945,10]
[376999955,1754196641117,-460.0,0.00027945,10]
[376999956,1754196641126,-460.0,0.00027945,10]
[376999957,1754196641135,-460.0,0.00027945,10]
[376999958,1754196641145,-460.0,0.00027945,10]
[376999959,1754196641154,-460.0,0.00027945,10]
[376999960,1754196641163,-460.0,0.00027945,10]
[376999961,1754196641173,-460.0,0.00027945,10]
[376999962,1754196641183,-460.0,0.00027945,10]
[376999963,1754196641192,-460.0,0.00027945,10]
[376999964,1754196641201,-294.32040659,0.00027945,10]
[376999965,1754196641211,-460.0,0.00027945,10]
[376999966,1754196641220,-539.93202295,0.00027945,10]
[376999967,1754196641230,-460.0,0.00027945,10]
[376999968,1754196641239,-460.0,0.00027945,10]
[376999969,1754196641248,-460.0,0.00027945,10]
[376999970,1754196641258,-460.0,0.00027945,10]
[376999971,1754196641267,-460.0,0.00027945,10]
[376999972,1754196641276,-460.0,0.00027945,10]
[376999973,1754196641286,-460.0,0.00027945,10]
[376999974,1754196641295,-460.0,0.00027945,10]
[376999975,1754196641305,-460.0,0.00027945,10]
[376999976,1754196641314,-426.83268321,0.00027945,10]
[376999977,1754196641324,-460.0,0.00027945,10]
[376999978,1754196641334,-460.0,0.00027945,10]
[376999979,1754196641343,-460.0,0.00027945,10]
[376999980,1754196641353,-460.0,0.00027945,3]
[376999981,1754196641362,-572.04404519,0.00027945,3]
[376999982,1754196641372,-460.0,0.00027945,10]
[376999983,1754196641381,-469.29184274,0.00027945,10]
[376999984,1754196641393,-460.0,0.00027945,10]
[376999985,1754196641403,-460.0,0.00027945,10]
[376999986,1754196641412,-460.0,0.00027945,10]
[376999987,1754196641422,-460.0,0.00027945,10]
[376999988,1754196641432,-460.0,0.00027945,10]
[376999989,1754196641441,-460.0,0.00027945,10]
[376999990,1754196641451,-460.0,0.00027945,10]
[376999991,1754196641460,-460.0,0.00027945,10]
[376999992,1754196641471,-460.0,0.00027945,10]
[376999993,1754196641480,-460.0,0.00027945,10]
[376999994,1754196641490,-171.08,0.00027945,10]
[376999995,1754196641500,-460.0,0.00027945,10]
[376999996,1754196641510,-383.44371516,0.00027945,10]
[376999997,1754196641520,-665.43,0.00027945,10]
[376999998,1754196641529,-665.43,0.00027945,10]
[376999999,1754196641540,-665.43,0.00027945,10]
[377000000,1754196641550,-665.43,0.00027945,10]
[377000001,1754196641559,-665.43,0.00027945,10]
[377000002,1754196641569,-665.43,0.00027945,10]
[377000003,1754196641581,-665.43,0.00027945,10]
[377000004,1754196641599,-665.43,0.00027945,10]
[377000005,1754196641608,-665.43,0.00027945,10]
[377000006,1754196641618,-665.43,0.00027945,10]
[377000007,1754196641627,-665.43,0.00027945,10]
[377000008,1754196641636,-665.43,0.00027945,10]
[377000009,1754196641645,-665.43,0.00027945,10]
[377000010,1754196641654,-460.0,0.00027945,10]
[377000011,1754196641664,-460.0,0.00027945,10]
[377000012,1754196641674,-460.0,0.00027945,10]
[377000013,1754196641684,-460.0,0.00027945,10]
[377000014,1754196641693,-460.0,0.00027945,10]
[377000015,1754196641702,-460.0,0.00027945,10]
[377000016,1754196641712,-460.0,0.00027945,10]
[377000017,1754196641721,-460.0,0.00027945,10]
[377000018,1754196641731,-429.51559515,0.00027945,10]
[377000019,1754196641740,-460.0,0.00027945,10]
[377000020,1754196641750,-460.0,0.00027945,10]
[377000021,1754196641759,-460.0,0.00027945,10]
[377000022,1754196641768,-460.0,0.00027945,10]
[377000023,1754196641778,-460.0,0.00027945,10]
[377000024,1754196641789,-460.0,0.00027945,10]
[377000025,1754196641799,-460.0,0.00027945,10]
[377000026,1754196641809,-460.0,0.00027945,10]
[377000027,1754196641818,-460.0,0.00027945,10]
[377000028,1754196641828,-460.0,0.00027945,10]
[377000029,1754196641837,-460.0,0.00027945,10]
[377000030,1754196641846,-460.0,0.00027945,10]
[377000031,1754196641856,-460.0,0.00027945,10]
[377000032,1754196641866,-460.0,0.00027945,10]
[377000033,1754196641875,-460.0,0.00027945,10]
[377000034,1754196641886,-509.99804352,0.00027945,10]
[377000035,1754196641896,-460.0,0.00027945,10]
[377000036,1754196641906,-460.0,0.00027945,10]
[377000037,1754196641915,-460.0,0.00027945,10]
[377000038,1754196641924,-460.0,0.00027945,10]
[377000039,1754196641936,-460.0,0.00027945,10]
[377000040,1754196641945,-460.0,0.00027945,10]
[377000041,1754196641955,-460.0,0.00027945,10]
[377000042,1754196641966,-460.0,0.00027945,10]
[377000043,1754196641977,-460.0,0.00027945,10]
[377000044,1754196641987,-460.0,0.00027945,10]
[377000045,1754196641997,-460.0,0.00027945,10]
[377000046,1754196642007,-460.0,0.00027945,10]
[377000047,1754196642016,-460.0,0.00027945,10]
[377000048,1754196642025,-460.0,0.00027945,10]
[377000049,1754196642035,-460.0,0.00027945,10]
[377000050,1754196642044,-460.0,0.00027945,10]
[377000051,1754196642054,-463.59460316,0.00027945,10]
[377000052,1754196642063,-500.0,0.00027945,10]
[377000053,1754196642073,-460.0,0.00027945,10]
[377000054,1754196642189,-460.0,0.00027945,10]
[377000055,1754196642200,-460.0,0.00027945,10]
[377000056,1754196642210,-460.0,0.00027945,10]
[377000057,1754196642221,-189.24,0.00027945,10]
[377000058,1754196642232,-163.89451954,0.00027968,2]
[377000059,1754196642244,-460.0,0.00027972,10]
[377000060,1754196642253,-500.57,0.00027972,10]
[377000062,1754196642263,-460.0,0.00027972,10]
[377000063,1754196642272,-637.43097419,0.00027973,5]
[377000064,1754196642281,-600.0,0.00027973,5]
[377000065,1754196642291,-500.0,0.00027973,2]
[377000066,1754196642300,-306.79758938,0.00027973,5]
[377000067,1754196642309,-500.0,0.00027973,5]
[377000068,1754196642319,-500.0,0.00027973,5]
[377000069,1754196642328,-503.52959917,0.00027973,5]
[377000070,1754196642338,-150.0,0.00027973,5]
[377000072,1754196642348,-500.0,0.00027973,5]
[377000073,1754196642358,-504.54503008,0.00027973,5]
[377000076,1754196642367,-500.0,0.00027973,5]
[377000077,1754196642378,-500.0,0.00027973,2]